[Event "Titled Tuesday Blitz April 19 Late 2022"]
[White "Ricaurte Lopez, Juan Carlos"]
[Black "Bas Mas, Jose Joaquin"]
[WhiteFideId "3600327"]
[BlackFideId "22219064"]
[WhiteElo "2209"]
[BlackElo "2212"]
[Result "0-1"]
[Round "06"]
[TimeControl "180+1"]
[Date "2022.04.19"]
[WhiteClock "0:00:09"]
[BlackClock "0:00:09"]

1. e4 {[%clk 0:03:00]}  c5 {[%clk 0:02:59]} 2. Nf3 {[%clk 0:02:57]}  d6 {[%clk 0:02:59]} 3. d4 {[%clk 0:02:56]}  cxd4 {[%clk 0:03:00]} 4. Nxd4 {[%clk 0:02:56]}  Nf6 {[%clk 0:03:00]} 5. Nc3 {[%clk 0:02:56]}  g6 {[%clk 0:03:01]} 6. f4 {[%clk 0:02:55]}  Nc6 {[%clk 0:02:59]} 7. Nf3 {[%clk 0:02:54]}  Bg7 {[%clk 0:02:52]} 8. Bc4 {[%clk 0:02:51]}  O-O {[%clk 0:02:50]} 9. O-O {[%clk 0:02:49]}  Nd7 {[%clk 0:02:44]} 10. Kh1 {[%clk 0:02:46]}  Nb6 {[%clk 0:02:44]} 11. Bb3 {[%clk 0:02:43]}  Na5 {[%clk 0:02:44]} 12. Qe2 {[%clk 0:02:34]}  Bd7 {[%clk 0:02:40]} 13. Be3 {[%clk 0:02:29]}  Rc8 {[%clk 0:02:38]} 14. Bd4 {[%clk 0:02:28]}  Nbc4 {[%clk 0:02:32]} 15. Bxg7 {[%clk 0:02:24]}  Kxg7 {[%clk 0:02:30]} 16. Rab1 {[%clk 0:01:56]}  Nxb2 {[%clk 0:02:18]} 17. Nd5 {[%clk 0:01:47]}  Na4 {[%clk 0:02:05]} 18. c4 {[%clk 0:01:28]}  Nc5 {[%clk 0:02:01]} 19. e5 {[%clk 0:01:21]}  Bf5 {[%clk 0:01:58]} 20. Rbd1 {[%clk 0:01:11]}  Re8 {[%clk 0:01:30]} 21. Nd4 {[%clk 0:01:01]}  Be4 {[%clk 0:01:25]} 22. Nb5 {[%clk 0:00:46]}  a6 {[%clk 0:01:15]} 23. Nbc3 {[%clk 0:00:44]}  Bf5 {[%clk 0:00:58]} 24. g4 {[%clk 0:00:37]}  Bd7 {[%clk 0:00:51]} 25. f5 {[%clk 0:00:37]}  Bc6 {[%clk 0:00:35]} 26. e6 {[%clk 0:00:34]}  f6 {[%clk 0:00:28]} 27. fxg6 {[%clk 0:00:25]}  hxg6 {[%clk 0:00:27]} 28. g5 {[%clk 0:00:25]}  f5 {[%clk 0:00:15]} 29. Rfe1 {[%clk 0:00:19]}  Rh8 {[%clk 0:00:14]} 30. Qb2 {[%clk 0:00:18]}  Kg8 {[%clk 0:00:12]} 31. Ne2 {[%clk 0:00:16]}  Naxb3 {[%clk 0:00:11]} 32. axb3 {[%clk 0:00:14]}  Qf8 {[%clk 0:00:10]} 33. Nf4 {[%clk 0:00:14]}  Qg7 {[%clk 0:00:10]} 34. Kg1 {[%clk 0:00:12]}  Qxb2 {[%clk 0:00:10]} 35. Re2 {[%clk 0:00:09]}  Bxd5 {[%clk 0:00:09]} 0-1


[Site "https://www.chess.com"]

[Event "Titled Tuesday Blitz April 19 Late 2022"]
[White "Rosen, Eric"]
[Black "Ardila, Oscar Humberto"]
[WhiteFideId "2032562"]
[BlackFideId "4404742"]
[WhiteElo "2362"]
[BlackElo "1983"]
[Result "1-0"]
[Round "06"]
[TimeControl "180+1"]
[Date "2022.04.19"]
[WhiteClock "0:00:12"]
[BlackClock "0:00:13"]

1. e4 {[%clk 0:03:00]}  e5 {[%clk 0:02:59]} 2. Nf3 {[%clk 0:02:58]}  Nf6 {[%clk 0:02:59]} 3. Nxe5 {[%clk 0:02:45]}  d6 {[%clk 0:03:00]} 4. Nc4 {[%clk 0:02:41]}  Nxe4 {[%clk 0:02:59]} 5. Nc3 {[%clk 0:02:42]}  Nf6 {[%clk 0:02:58]} 6. d4 {[%clk 0:02:41]}  Be7 {[%clk 0:02:59]} 7. Bd3 {[%clk 0:02:40]}  O-O {[%clk 0:03:00]} 8. O-O {[%clk 0:02:39]}  Nbd7 {[%clk 0:03:00]} 9. Re1 {[%clk 0:02:31]}  Re8 {[%clk 0:03:00]} 10. Bg5 {[%clk 0:02:31]}  Nf8 {[%clk 0:03:00]} 11. h3 {[%clk 0:02:28]}  Ne6 {[%clk 0:03:00]} 12. Be3 {[%clk 0:02:22]}  c6 {[%clk 0:02:53]} 13. a4 {[%clk 0:02:14]}  Bd7 {[%clk 0:02:39]} 14. Qf3 {[%clk 0:02:13]}  Nf8 {[%clk 0:02:31]} 15. Re2 {[%clk 0:02:08]}  Qc7 {[%clk 0:02:30]} 16. Rae1 {[%clk 0:02:03]}  Ng6 {[%clk 0:02:28]} 17. Bxg6 {[%clk 0:01:43]}  hxg6 {[%clk 0:02:27]} 18. Bf4 {[%clk 0:01:44]}  Be6 {[%clk 0:02:24]} 19. Qd3 {[%clk 0:01:15]}  Qd7 {[%clk 0:02:19]} 20. Ne3 {[%clk 0:01:12]}  d5 {[%clk 0:02:16]} 21. Nb1 {[%clk 0:00:42]}  Bb4 {[%clk 0:02:14]} 22. c3 {[%clk 0:00:42]}  Bf8 {[%clk 0:02:13]} 23. Nd2 {[%clk 0:00:43]}  Nh5 {[%clk 0:02:12]} 24. Bh2 {[%clk 0:00:43]}  Nf6 {[%clk 0:01:50]} 25. Nf3 {[%clk 0:00:42]}  Ne4 {[%clk 0:01:50]} 26. Ne5 {[%clk 0:00:43]}  Qc8 {[%clk 0:01:49]} 27. f3 {[%clk 0:00:43]}  Nf6 {[%clk 0:01:48]} 28. g4 {[%clk 0:00:44]}  Bd6 {[%clk 0:01:47]} 29. h4 {[%clk 0:00:43]}  Qc7 {[%clk 0:01:46]} 30. Kg2 {[%clk 0:00:30]}  Nd7 {[%clk 0:01:46]} 31. f4 {[%clk 0:00:26]}  Nxe5 {[%clk 0:01:39]} 32. dxe5 {[%clk 0:00:19]}  Bc5 {[%clk 0:01:39]} 33. f5 {[%clk 0:00:19]}  gxf5 {[%clk 0:01:36]} 34. gxf5 {[%clk 0:00:20]}  Bc8 {[%clk 0:01:36]} 35. e6 {[%clk 0:00:19]}  Qb6 {[%clk 0:01:30]} 36. Nxd5 {[%clk 0:00:16]}  cxd5 {[%clk 0:01:07]} 37. exf7+ {[%clk 0:00:16]}  Kxf7 {[%clk 0:01:08]} 38. Rxe8 {[%clk 0:00:17]}  Qxb2+ {[%clk 0:01:05]} 39. R1e2 {[%clk 0:00:16]}  Qb3 {[%clk 0:00:46]} 40. Rd8 {[%clk 0:00:11]}  Be7 {[%clk 0:00:34]} 41. Qxd5+ {[%clk 0:00:10]}  Qxd5+ {[%clk 0:00:34]} 42. Rxd5 {[%clk 0:00:11]}  Bf6 {[%clk 0:00:23]} 43. Be5 {[%clk 0:00:09]}  b6 {[%clk 0:00:14]} 44. Kg3 {[%clk 0:00:07]}  Bb7 {[%clk 0:00:14]} 45. Rd7+ {[%clk 0:00:08]}  Kg8 {[%clk 0:00:13]} 46. Rxb7 {[%clk 0:00:08]}  Bxe5+ {[%clk 0:00:13]} 47. Rxe5 {[%clk 0:00:09]}  Rc8 {[%clk 0:00:13]} 48. Ree7 {[%clk 0:00:09]}  Rxc3+ {[%clk 0:00:13]} 49. Kf4 {[%clk 0:00:10]}  Rc4+ {[%clk 0:00:13]} 50. Ke3 {[%clk 0:00:10]}  Rc3+ {[%clk 0:00:13]} 51. Kf2 {[%clk 0:00:10]}  Rc2+ {[%clk 0:00:13]} 52. Kf1 {[%clk 0:00:10]}  Rc1+ {[%clk 0:00:13]} 53. Ke2 {[%clk 0:00:11]}  Rc2+ {[%clk 0:00:13]} 54. Kd3 {[%clk 0:00:11]}  Ra2 {[%clk 0:00:14]} 55. Rxg7+ {[%clk 0:00:11]}  Kh8 {[%clk 0:00:14]} 56. f6 {[%clk 0:00:11]}  Ra3+ {[%clk 0:00:13]} 57. Kc2 {[%clk 0:00:12]}  Rxa4 {[%clk 0:00:13]} 58. Rb8# {[%clk 0:00:12]} 1-0


[Site "https://www.chess.com"]

[Event "Titled Tuesday Blitz April 19 Late 2022"]
[White "Rytenko, Vsevolod"]
[Black "Krishnakumar, Sriram"]
[WhiteFideId "14133040"]
[BlackFideId "30915856"]
[WhiteElo "2120"]
[BlackElo "2432"]
[Result "1-0"]
[Round "06"]
[TimeControl "180+1"]
[Date "2022.04.19"]
[WhiteClock "0:01:11"]
[BlackClock "0:00:20"]

1. e4 {[%clk 0:03:00]}  e5 {[%clk 0:02:59]} 2. Nf3 {[%clk 0:03:01]}  Nc6 {[%clk 0:02:57]} 3. Bc4 {[%clk 0:03:01]}  Bc5 {[%clk 0:02:57]} 4. d4 {[%clk 0:03:02]}  Bxd4 {[%clk 0:02:53]} 5. O-O {[%clk 0:03:00]}  Nf6 {[%clk 0:02:50]} 6. Nxd4 {[%clk 0:02:41]}  Nxd4 {[%clk 0:02:47]} 7. f4 {[%clk 0:02:40]}  d6 {[%clk 0:02:46]} 8. Kh1 {[%clk 0:02:39]}  Qe7 {[%clk 0:02:36]} 9. fxe5 {[%clk 0:02:37]}  dxe5 {[%clk 0:02:33]} 10. Bg5 {[%clk 0:02:36]}  Be6 {[%clk 0:02:26]} 11. Bxe6 {[%clk 0:02:26]}  Qxe6 {[%clk 0:02:27]} 12. Bxf6 {[%clk 0:02:23]}  gxf6 {[%clk 0:02:28]} 13. c3 {[%clk 0:02:22]}  Nc6 {[%clk 0:02:25]} 14. Na3 {[%clk 0:02:21]}  Ke7 {[%clk 0:02:21]} 15. Nb5 {[%clk 0:02:06]}  Rad8 {[%clk 0:02:10]} 16. Qa4 {[%clk 0:02:03]}  Rd7 {[%clk 0:01:14]} 17. Qa3+ {[%clk 0:02:03]}  Ke8 {[%clk 0:01:11]} 18. Nxa7 {[%clk 0:01:50]}  Nxa7 {[%clk 0:01:06]} 19. Qxa7 {[%clk 0:01:51]}  Qb6 {[%clk 0:01:06]} 20. Qxb6 {[%clk 0:01:45]}  cxb6 {[%clk 0:01:06]} 21. Rxf6 {[%clk 0:01:45]}  Rd2 {[%clk 0:00:50]} 22. Rxb6 {[%clk 0:01:43]}  Rg8 {[%clk 0:00:50]} 23. Rg1 {[%clk 0:01:39]}  Rg4 {[%clk 0:00:44]} 24. Rxb7 {[%clk 0:01:36]}  Rxe4 {[%clk 0:00:36]} 25. h3 {[%clk 0:01:27]}  Ree2 {[%clk 0:00:23]} 26. a4 {[%clk 0:01:27]}  Rxb2 {[%clk 0:00:21]} 27. Rxb2 {[%clk 0:01:27]}  Rxb2 {[%clk 0:00:21]} 28. Ra1 {[%clk 0:01:26]}  Rb6 {[%clk 0:00:19]} 29. a5 {[%clk 0:01:26]}  Ra6 {[%clk 0:00:19]} 30. g4 {[%clk 0:01:24]}  f6 {[%clk 0:00:19]} 31. Kg2 {[%clk 0:01:25]}  Kd7 {[%clk 0:00:20]} 32. Kf3 {[%clk 0:01:25]}  Ke6 {[%clk 0:00:20]} 33. Ke4 {[%clk 0:01:25]}  Rc6 {[%clk 0:00:20]} 34. a6 {[%clk 0:01:25]}  Rc4+ {[%clk 0:00:20]} 35. Kd3 {[%clk 0:01:25]}  Rc8 {[%clk 0:00:21]} 36. a7 {[%clk 0:01:25]}  Ra8 {[%clk 0:00:22]} 37. Ke4 {[%clk 0:01:24]}  Ke7 {[%clk 0:00:22]} 38. Kf5 {[%clk 0:01:23]}  Kf7 {[%clk 0:00:22]} 39. h4 {[%clk 0:01:24]}  Kg7 {[%clk 0:00:22]} 40. c4 {[%clk 0:01:23]}  Kf7 {[%clk 0:00:22]} 41. c5 {[%clk 0:01:23]}  Ke7 {[%clk 0:00:23]} 42. Ra6 {[%clk 0:01:21]}  h5 {[%clk 0:00:20]} 43. gxh5 {[%clk 0:01:20]}  Kd7 {[%clk 0:00:19]} 44. h6 {[%clk 0:01:20]}  e4 {[%clk 0:00:19]} 45. Kxe4 {[%clk 0:01:16]}  Ke7 {[%clk 0:00:19]} 46. Kf5 {[%clk 0:01:15]}  Kf7 {[%clk 0:00:20]} 47. Rxf6+ {[%clk 0:01:15]}  Kg8 {[%clk 0:00:21]} 48. Ra6 {[%clk 0:01:16]}  Kh7 {[%clk 0:00:22]} 49. c6 {[%clk 0:01:12]}  Rf8+ {[%clk 0:00:20]} 50. Ke6 {[%clk 0:01:12]}  Ra8 {[%clk 0:00:21]} 51. c7 {[%clk 0:01:11]}  Re8+ {[%clk 0:00:22]} 52. Kd7 {[%clk 0:01:11]}  Ra8 {[%clk 0:00:23]} 53. c8=Q {[%clk 0:01:11]}  Rxc8 {[%clk 0:00:24]} 54. Kxc8 {[%clk 0:01:11]}  Kg8 {[%clk 0:00:24]} 55. a8=Q {[%clk 0:01:11]}  Kh7 {[%clk 0:00:25]} 56. Qb7+ {[%clk 0:01:11]}  Kg8 {[%clk 0:00:24]} 57. Ra8 {[%clk 0:01:10]}  Kh8 {[%clk 0:00:19]} 58. Kb8 {[%clk 0:01:11]}  Kg8 {[%clk 0:00:20]} 59. Ka7# {[%clk 0:01:11]} 1-0


[Site "https://www.chess.com"]

[Event "Titled Tuesday Blitz April 19 Late 2022"]
[White "Sowa, Ryan"]
[Black "Kollars, Dmitrij"]
[WhiteFideId "30901693"]
[BlackFideId "12909572"]
[WhiteElo "2626"]
[BlackElo "2584"]
[Result "1/2-1/2"]
[Round "06"]
[TimeControl "180+1"]
[Date "2022.04.19"]
[WhiteClock "0:00:07"]
[BlackClock "0:00:04"]

1. Nf3 {[%clk 0:03:00]}  Nf6 {[%clk 0:02:55]} 2. c4 {[%clk 0:02:59]}  g6 {[%clk 0:02:55]} 3. Nc3 {[%clk 0:02:57]}  Bg7 {[%clk 0:02:56]} 4. e4 {[%clk 0:02:56]}  O-O {[%clk 0:02:56]} 5. d4 {[%clk 0:02:56]}  d6 {[%clk 0:02:57]} 6. Be2 {[%clk 0:02:56]}  e5 {[%clk 0:02:57]} 7. O-O {[%clk 0:02:57]}  exd4 {[%clk 0:02:58]} 8. Nxd4 {[%clk 0:02:57]}  Re8 {[%clk 0:02:58]} 9. f3 {[%clk 0:02:57]}  c6 {[%clk 0:02:59]} 10. Bf4 {[%clk 0:02:57]}  d5 {[%clk 0:02:59]} 11. cxd5 {[%clk 0:02:56]}  Nxd5 {[%clk 0:02:59]} 12. Nxd5 {[%clk 0:02:55]}  cxd5 {[%clk 0:03:00]} 13. Nb5 {[%clk 0:02:53]}  Be5 {[%clk 0:02:48]} 14. Qd2 {[%clk 0:02:36]}  Nc6 {[%clk 0:02:31]} 15. Rad1 {[%clk 0:02:34]}  Bxf4 {[%clk 0:02:16]} 16. Qxf4 {[%clk 0:02:35]}  Qb6+ {[%clk 0:02:16]} 17. Kh1 {[%clk 0:02:35]}  dxe4 {[%clk 0:02:16]} 18. Nc7 {[%clk 0:02:21]}  Be6 {[%clk 0:02:06]} 19. Nxa8 {[%clk 0:02:18]}  Rxa8 {[%clk 0:02:07]} 20. fxe4 {[%clk 0:01:47]}  Qxb2 {[%clk 0:02:05]} 21. Rd2 {[%clk 0:01:47]}  Qc3 {[%clk 0:02:01]} 22. Rd3 {[%clk 0:01:07]}  Qb2 {[%clk 0:01:57]} 23. Qd2 {[%clk 0:01:07]}  Qe5 {[%clk 0:01:50]} 24. Qc3 {[%clk 0:01:05]}  Bxa2 {[%clk 0:01:39]} 25. Qxe5 {[%clk 0:01:04]}  Nxe5 {[%clk 0:01:40]} 26. Ra3 {[%clk 0:01:02]}  Be6 {[%clk 0:01:38]} 27. Rb1 {[%clk 0:00:59]}  b6 {[%clk 0:01:10]} 28. Rxb6 {[%clk 0:00:53]}  Bc4 {[%clk 0:01:10]} 29. Rb2 {[%clk 0:00:47]}  a5 {[%clk 0:00:59]} 30. h3 {[%clk 0:00:41]}  Be6 {[%clk 0:00:50]} 31. Rb5 {[%clk 0:00:37]}  Nc6 {[%clk 0:00:48]} 32. Rc5 {[%clk 0:00:37]}  Nd4 {[%clk 0:00:48]} 33. Bc4 {[%clk 0:00:27]}  Re8 {[%clk 0:00:32]} 34. Bxe6 {[%clk 0:00:27]}  Rxe6 {[%clk 0:00:33]} 35. Raxa5 {[%clk 0:00:18]}  Rxe4 {[%clk 0:00:33]} 36. Re5 {[%clk 0:00:18]}  Rf4 {[%clk 0:00:32]} 37. Ra1 {[%clk 0:00:18]}  Nf5 {[%clk 0:00:27]} 38. Ree1 {[%clk 0:00:17]}  h5 {[%clk 0:00:25]} 39. Ra3 {[%clk 0:00:16]}  h4 {[%clk 0:00:24]} 40. Rf3 {[%clk 0:00:16]}  Rb4 {[%clk 0:00:22]} 41. Rxf5 {[%clk 0:00:14]}  gxf5 {[%clk 0:00:21]} 42. Re5 {[%clk 0:00:14]}  Rf4 {[%clk 0:00:20]} 43. Kg1 {[%clk 0:00:14]}  Kg7 {[%clk 0:00:21]} 44. Re3 {[%clk 0:00:14]}  Ra4 {[%clk 0:00:19]} 45. Rb3 {[%clk 0:00:13]}  Kg6 {[%clk 0:00:19]} 46. Rc3 {[%clk 0:00:13]}  Kg5 {[%clk 0:00:19]} 47. Rb3 {[%clk 0:00:14]}  Re4 {[%clk 0:00:19]} 48. Rc3 {[%clk 0:00:14]}  Kf4 {[%clk 0:00:18]} 49. Rf3+ {[%clk 0:00:14]}  Kg5 {[%clk 0:00:18]} 50. Ra3 {[%clk 0:00:15]}  f6 {[%clk 0:00:19]} 51. Rf3 {[%clk 0:00:15]}  Re5 {[%clk 0:00:17]} 52. Ra3 {[%clk 0:00:15]}  f4 {[%clk 0:00:18]} 53. Rb3 {[%clk 0:00:16]}  Re3 {[%clk 0:00:17]} 54. Rb5+ {[%clk 0:00:15]}  f5 {[%clk 0:00:17]} 55. Rb8 {[%clk 0:00:13]}  Re6 {[%clk 0:00:17]} 56. Rb3 {[%clk 0:00:11]}  Rd6 {[%clk 0:00:16]} 57. Kf2 {[%clk 0:00:10]}  Rd2+ {[%clk 0:00:16]} 58. Kf3 {[%clk 0:00:09]}  Rc2 {[%clk 0:00:15]} 59. Ra3 {[%clk 0:00:10]}  Rb2 {[%clk 0:00:16]} 60. Rc3 {[%clk 0:00:10]}  Rb1 {[%clk 0:00:16]} 61. Kf2 {[%clk 0:00:09]}  Rd1 {[%clk 0:00:15]} 62. Rb3 {[%clk 0:00:09]}  Rd4 {[%clk 0:00:15]} 63. Rc3 {[%clk 0:00:09]}  Re4 {[%clk 0:00:15]} 64. Rb3 {[%clk 0:00:09]}  Kf6 {[%clk 0:00:16]} 65. Rc3 {[%clk 0:00:10]}  Rb4 {[%clk 0:00:16]} 66. Rd3 {[%clk 0:00:10]}  Ke5 {[%clk 0:00:16]} 67. Rd2 {[%clk 0:00:09]}  Rd4 {[%clk 0:00:14]} 68. Re2+ {[%clk 0:00:10]}  Re4 {[%clk 0:00:14]} 69. Ra2 {[%clk 0:00:11]}  Rb4 {[%clk 0:00:14]} 70. Rc2 {[%clk 0:00:11]}  Kd5 {[%clk 0:00:14]} 71. Re2 {[%clk 0:00:11]}  Re4 {[%clk 0:00:12]} 72. Ra2 {[%clk 0:00:11]}  Rc4 {[%clk 0:00:12]} 73. Rd2+ {[%clk 0:00:09]}  Ke5 {[%clk 0:00:12]} 74. Re2+ {[%clk 0:00:10]}  Kf6 {[%clk 0:00:13]} 75. Ra2 {[%clk 0:00:10]}  Rc3 {[%clk 0:00:13]} 76. Re2 {[%clk 0:00:10]}  Rd3 {[%clk 0:00:12]} 77. Ra2 {[%clk 0:00:10]}  Ke5 {[%clk 0:00:13]} 78. Re2+ {[%clk 0:00:10]}  Kd4 {[%clk 0:00:13]} 79. Ra2 {[%clk 0:00:11]}  Ke4 {[%clk 0:00:13]} 80. Ra4+ {[%clk 0:00:10]}  Rd4 {[%clk 0:00:13]} 81. Ra2 {[%clk 0:00:10]}  f3 {[%clk 0:00:12]} 82. gxf3+ {[%clk 0:00:09]}  Kf4 {[%clk 0:00:12]} 83. Rb2 {[%clk 0:00:09]}  Ra4 {[%clk 0:00:13]} 84. Rc2 {[%clk 0:00:09]}  Rb4 {[%clk 0:00:12]} 85. Ra2 {[%clk 0:00:09]}  Rc4 {[%clk 0:00:13]} 86. Rb2 {[%clk 0:00:10]}  Kg5 {[%clk 0:00:13]} 87. Ra2 {[%clk 0:00:10]}  Rc3 {[%clk 0:00:13]} 88. Kg2 {[%clk 0:00:10]}  Kf4 {[%clk 0:00:13]} 89. Kf2 {[%clk 0:00:10]}  Rxf3+ {[%clk 0:00:12]} 90. Kg2 {[%clk 0:00:10]}  Rg3+ {[%clk 0:00:13]} 91. Kh2 {[%clk 0:00:11]}  Re3 {[%clk 0:00:13]} 92. Ra4+ {[%clk 0:00:11]}  Re4 {[%clk 0:00:13]} 93. Ra5 {[%clk 0:00:09]}  Re2+ {[%clk 0:00:13]} 94. Kg1 {[%clk 0:00:09]}  Rd2 {[%clk 0:00:14]} 95. Rb5 {[%clk 0:00:07]}  Re2 {[%clk 0:00:14]} 96. Ra5 {[%clk 0:00:08]}  Kg3 {[%clk 0:00:14]} 97. Kf1 {[%clk 0:00:07]}  Rf2+ {[%clk 0:00:14]} 98. Ke1 {[%clk 0:00:08]}  Rf3 {[%clk 0:00:14]} 99. Ke2 {[%clk 0:00:07]}  Rf4 {[%clk 0:00:13]} 100. Ra3+ {[%clk 0:00:07]}  Kg2 {[%clk 0:00:13]} 101. Rb3 {[%clk 0:00:07]}  Rf2+ {[%clk 0:00:13]} 102. Ke1 {[%clk 0:00:07]}  Rf3 {[%clk 0:00:14]} 103. Rb4 {[%clk 0:00:04]}  Kxh3 {[%clk 0:00:13]} 104. Ke2 {[%clk 0:00:05]}  Ra3 {[%clk 0:00:11]} 105. Rf4 {[%clk 0:00:04]}  Ra2+ {[%clk 0:00:11]} 106. Kf3 {[%clk 0:00:05]}  Ra3+ {[%clk 0:00:11]} 107. Kf2 {[%clk 0:00:05]}  Ra5 {[%clk 0:00:12]} 108. Kf3 {[%clk 0:00:05]}  Rb5 {[%clk 0:00:12]} 109. Kf2 {[%clk 0:00:06]}  Rb2+ {[%clk 0:00:11]} 110. Kf3 {[%clk 0:00:06]}  Rb1 {[%clk 0:00:11]} 111. Kf2 {[%clk 0:00:05]}  Rb5 {[%clk 0:00:11]} 112. Kf3 {[%clk 0:00:06]}  Rd5 {[%clk 0:00:12]} 113. Kf2 {[%clk 0:00:06]}  Re5 {[%clk 0:00:11]} 114. Kf3 {[%clk 0:00:06]}  Rd5 {[%clk 0:00:09]} 115. Kf2 {[%clk 0:00:06]}  Rd2+ {[%clk 0:00:07]} 116. Kf3 {[%clk 0:00:07]}  Rd1 {[%clk 0:00:07]} 117. Kf2 {[%clk 0:00:07]}  Rd2+ {[%clk 0:00:03]} 118. Kf3 {[%clk 0:00:07]}  Rd5 {[%clk 0:00:04]} 1/2-1/2


[Site "https://www.chess.com"]

[Event "Titled Tuesday Blitz April 19 Late 2022"]
[White "Spata, German"]
[Black "Rustemov, Alexander"]
[WhiteFideId "113026"]
[BlackFideId "4119002"]
[WhiteElo "2238"]
[BlackElo "2724"]
[Result "1-0"]
[Round "06"]
[TimeControl "180+1"]
[Date "2022.04.19"]
[WhiteClock "0:00:06"]
[BlackClock "0:00:02"]

1. d3 {[%clk 0:02:57]}  d5 {[%clk 0:02:59]} 2. g3 {[%clk 0:02:56]}  e5 {[%clk 0:02:57]} 3. Bg2 {[%clk 0:02:56]}  Nf6 {[%clk 0:02:56]} 4. e3 {[%clk 0:02:55]}  c5 {[%clk 0:02:55]} 5. Ne2 {[%clk 0:02:53]}  Nc6 {[%clk 0:02:54]} 6. O-O {[%clk 0:02:50]}  Be7 {[%clk 0:02:52]} 7. Nd2 {[%clk 0:02:45]}  Be6 {[%clk 0:02:48]} 8. e4 {[%clk 0:02:45]}  O-O {[%clk 0:02:36]} 9. h3 {[%clk 0:02:44]}  Qd7 {[%clk 0:02:36]} 10. Kh2 {[%clk 0:02:44]}  Rad8 {[%clk 0:02:28]} 11. Nc3 {[%clk 0:02:31]}  dxe4 {[%clk 0:02:22]} 12. Ndxe4 {[%clk 0:02:27]}  Nd4 {[%clk 0:02:17]} 13. Ng5 {[%clk 0:02:11]}  Bf5 {[%clk 0:02:14]} 14. Re1 {[%clk 0:01:58]}  Bd6 {[%clk 0:02:01]} 15. Nge4 {[%clk 0:01:56]}  Nxe4 {[%clk 0:01:50]} 16. Nxe4 {[%clk 0:01:57]}  Be7 {[%clk 0:01:42]} 17. c3 {[%clk 0:01:55]}  Ne6 {[%clk 0:01:39]} 18. Be3 {[%clk 0:01:50]}  Qxd3 {[%clk 0:01:31]} 19. Qa4 {[%clk 0:01:34]}  Qa6 {[%clk 0:01:20]} 20. Qxa6 {[%clk 0:01:24]}  bxa6 {[%clk 0:01:21]} 21. Rad1 {[%clk 0:01:14]}  a5 {[%clk 0:01:18]} 22. Nd2 {[%clk 0:01:07]}  Bc2 {[%clk 0:01:14]} 23. Rc1 {[%clk 0:01:07]}  Bd3 {[%clk 0:01:10]} 24. Bf1 {[%clk 0:01:00]}  f5 {[%clk 0:01:06]} 25. Bxd3 {[%clk 0:00:54]}  Rxd3 {[%clk 0:01:07]} 26. Nc4 {[%clk 0:00:54]}  e4 {[%clk 0:01:01]} 27. Nxa5 {[%clk 0:00:48]}  g5 {[%clk 0:00:49]} 28. Rcd1 {[%clk 0:00:40]}  Rfd8 {[%clk 0:00:43]} 29. Rxd3 {[%clk 0:00:36]}  Rxd3 {[%clk 0:00:43]} 30. Nc4 {[%clk 0:00:29]}  Bf6 {[%clk 0:00:36]} 31. Kg1 {[%clk 0:00:26]}  Kf7 {[%clk 0:00:35]} 32. Kf1 {[%clk 0:00:25]}  Kg6 {[%clk 0:00:28]} 33. Bc1 {[%clk 0:00:25]}  Rd7 {[%clk 0:00:26]} 34. Ke2 {[%clk 0:00:21]}  h5 {[%clk 0:00:25]} 35. Rd1 {[%clk 0:00:21]}  Rxd1 {[%clk 0:00:24]} 36. Kxd1 {[%clk 0:00:22]}  Bd8 {[%clk 0:00:19]} 37. Ne5+ {[%clk 0:00:20]}  Kf6 {[%clk 0:00:19]} 38. Nc6 {[%clk 0:00:20]}  Bb6 {[%clk 0:00:19]} 39. a4 {[%clk 0:00:20]}  a6 {[%clk 0:00:17]} 40. a5 {[%clk 0:00:20]}  Bc7 {[%clk 0:00:17]} 41. Ke2 {[%clk 0:00:18]}  f4 {[%clk 0:00:17]} 42. gxf4 {[%clk 0:00:17]}  gxf4 {[%clk 0:00:18]} 43. b4 {[%clk 0:00:17]}  c4 {[%clk 0:00:16]} 44. b5 {[%clk 0:00:15]}  axb5 {[%clk 0:00:15]} 45. a6 {[%clk 0:00:15]}  Bb6 {[%clk 0:00:12]} 46. a7 {[%clk 0:00:15]}  Nc7 {[%clk 0:00:09]} 47. Bxf4 {[%clk 0:00:15]}  Na8 {[%clk 0:00:09]} 48. Be3 {[%clk 0:00:14]}  Bc7 {[%clk 0:00:09]} 49. Nd4 {[%clk 0:00:13]}  Be5 {[%clk 0:00:04]} 50. Nxb5 {[%clk 0:00:13]}  Ke6 {[%clk 0:00:05]} 51. Bd4 {[%clk 0:00:13]}  Bf4 {[%clk 0:00:05]} 52. Na3 {[%clk 0:00:12]}  Kd5 {[%clk 0:00:05]} 53. Nb5 {[%clk 0:00:12]}  Bh2 {[%clk 0:00:04]} 54. Na3 {[%clk 0:00:12]}  Bd6 {[%clk 0:00:03]} 55. Nc2 {[%clk 0:00:12]}  Bh2 {[%clk 0:00:04]} 56. Ne3+ {[%clk 0:00:13]}  Kc6 {[%clk 0:00:04]} 57. Nxc4 {[%clk 0:00:13]}  Kb5 {[%clk 0:00:05]} 58. Ne3 {[%clk 0:00:13]}  Kc6 {[%clk 0:00:05]} 59. Nf5 {[%clk 0:00:13]}  Bf4 {[%clk 0:00:05]} 60. Ng7 {[%clk 0:00:13]}  h4 {[%clk 0:00:04]} 61. Ne6 {[%clk 0:00:13]}  Bg5 {[%clk 0:00:05]} 62. Nc5 {[%clk 0:00:11]}  Be7 {[%clk 0:00:04]} 63. Nxe4 {[%clk 0:00:11]}  Nc7 {[%clk 0:00:03]} 64. Kf3 {[%clk 0:00:10]}  Kb7 {[%clk 0:00:04]} 65. Kg4 {[%clk 0:00:10]}  Nb5 {[%clk 0:00:04]} 66. Ng5 {[%clk 0:00:09]}  Nxa7 {[%clk 0:00:05]} 67. Bxa7 {[%clk 0:00:09]}  Kxa7 {[%clk 0:00:06]} 68. Nf3 {[%clk 0:00:10]}  Kb6 {[%clk 0:00:06]} 69. Nxh4 {[%clk 0:00:10]}  Kc5 {[%clk 0:00:07]} 70. Nf5 {[%clk 0:00:10]}  Bf8 {[%clk 0:00:07]} 71. Ne3 {[%clk 0:00:11]}  Kd6 {[%clk 0:00:06]} 72. c4 {[%clk 0:00:11]}  Ke5 {[%clk 0:00:07]} 73. Kf3 {[%clk 0:00:11]}  Kd4 {[%clk 0:00:07]} 74. h4 {[%clk 0:00:11]}  Ke5 {[%clk 0:00:06]} 75. h5 {[%clk 0:00:11]}  Kf6 {[%clk 0:00:06]} 76. Kg4 {[%clk 0:00:11]}  Ke5 {[%clk 0:00:06]} 77. Nf5 {[%clk 0:00:09]}  Kf6 {[%clk 0:00:04]} 78. h6 {[%clk 0:00:09]}  Kg6 {[%clk 0:00:04]} 79. f4 {[%clk 0:00:09]}  Bc5 {[%clk 0:00:05]} 80. Kf3 {[%clk 0:00:05]}  Kxf5 {[%clk 0:00:04]} 81. h7 {[%clk 0:00:05]}  Bd4 {[%clk 0:00:04]} 82. c5 {[%clk 0:00:04]}  Ke6 {[%clk 0:00:02]} 83. Ke4 {[%clk 0:00:04]}  Bh8 {[%clk 0:00:02]} 84. f5+ {[%clk 0:00:03]}  Kd7 {[%clk 0:00:01]} 85. Kd5 {[%clk 0:00:04]}  Kc7 {[%clk 0:00:02]} 86. Ke6 {[%clk 0:00:03]}  Kd8 {[%clk 0:00:01]} 87. f6 {[%clk 0:00:04]}  Kc7 {[%clk 0:00:02]} 88. f7 {[%clk 0:00:04]}  Bg7 {[%clk 0:00:03]} 89. f8=Q {[%clk 0:00:04]}  Bxf8 {[%clk 0:00:03]} 90. h8=Q {[%clk 0:00:05]}  Bxc5 {[%clk 0:00:04]} 91. Qe5+ {[%clk 0:00:05]}  Kb6 {[%clk 0:00:03]} 92. Qd5 {[%clk 0:00:05]}  Bb4 {[%clk 0:00:04]} 93. Kd7 {[%clk 0:00:06]}  Bc3 {[%clk 0:00:02]} 94. Qb3+ {[%clk 0:00:06]}  Kc5 {[%clk 0:00:02]} 95. Qxc3+ {[%clk 0:00:06]}  Kd5 {[%clk 0:00:02]} 96. Qc6+ {[%clk 0:00:06]} 1-0


[Site "https://www.chess.com"]